bitfinex/quotes_BTCUSD_20250412
["timestamp","ask_amount","ask_price","bid_price","bid_amount"]
[1744421917394,0.11586575,83159.0,83158.0,1.37616]
[1744421921283,0.10586575,83159.0,83158.0,1.37616]
[1744421922350,0.09450055,83159.0,83158.0,1.37616]
[1744421924407,0.10582579,83159.0,83158.0,1.37616]
[1744421925663,0.09450055,83159.0,83158.0,1.37616]
[1744421929847,0.09450055,83159.0,83158.0,0.13892]
[1744421930032,0.10582579,83159.0,83158.0,0.13892]
[1744421934631,0.10582579,83159.0,83157.0,0.240506]
[1744421937054,0.01132579,83159.0,83158.0,0.12084154]
[1744421941650,5.5e-07,83159.0,83158.0,0.12084154]
[1744421943802,5.5e-07,83159.0,83158.0,0.12324619]
[1744421944003,5.5e-07,83159.0,83158.0,0.47778704]
[1744421944225,5.5e-07,83159.0,83158.0,0.52498239]
[1744421944792,5.5e-07,83159.0,83158.0,0.53477608]
[1744421944995,5.5e-07,83159.0,83158.0,0.58367608]
[1744421953195,5.5e-07,83159.0,83158.0,0.99187608]
[1744421954580,5.5e-07,83159.0,83158.0,1.09187608]
[1744421954802,5.5e-07,83159.0,83158.0,2.32919608]
[1744421956201,5.5e-07,83166.0,83165.0,0.50474085]
[1744421956406,5.5e-07,83166.0,83165.0,1.03378239]
[1744421963761,5.5e-07,83166.0,83165.0,0.88358239]
[1744421963914,5.5e-07,83166.0,83165.0,0.86904154]
[1744421964118,5.5e-07,83166.0,83165.0,1.00788154]
[1744421967849,5.5e-07,83166.0,83165.0,0.59968154]
[1744421972327,5.5e-07,83166.0,83165.0,0.52288239]
[1744421972500,5.5e-07,83166.0,83165.0,0.66172239]
[1744421973315,5.5e-07,83166.0,83165.0,0.66272239]
[1744421973723,5.5e-07,83166.0,83165.0,1.07092239]
[1744421975089,5.5e-07,83166.0,83165.0,1.02242239]
[1744421980608,5.5e-07,83166.0,83165.0,2.25954239]
[1744421981635,5.5e-07,83166.0,83165.0,2.15405939]
[1744421984933,5.5e-07,83166.0,83165.0,2.15505939]
[1744421985080,5.5e-07,83166.0,83165.0,2.20095939]
[1744421993568,5.5e-07,83166.0,83165.0,2.30095939]
[1744421994008,5.5e-07,83166.0,83165.0,2.16211939]
[1744421994153,5.5e-07,83166.0,83165.0,2.30091939]
[1744421996001,5.5e-07,83166.0,83165.0,2.25501939]
[1744421996964,5.5e-07,83166.0,83165.0,2.34564269]
[1744422000709,5.5e-07,83166.0,83165.0,2.24464269]
[1744422001122,5.5e-07,83166.0,83165.0,2.24564269]
[1744422004239,5.5e-07,83166.0,83165.0,2.15501939]
[1744422005076,5.5e-07,83166.0,83165.0,2.15401939]
[1744422008142,5.5e-07,83166.0,83165.0,2.15501939]
[1744422012633,5.5e-07,83166.0,83165.0,2.01621939]
[1744422012871,5.5e-07,83166.0,83165.0,2.15501939]
[1744422018937,5.5e-07,83166.0,83165.0,2.25501939]
[1744422032735,5.5e-07,83166.0,83165.0,2.25493939]
[1744422047064,0.0008438,83191.0,83165.0,2.25493939]
[1744422047065,0.0487,83199.0,83198.0,0.25493085]
[1744422047242,0.0487,83199.0,83198.0,2.09145239]
[1744422048809,0.0008906,83200.0,83199.0,0.35454085]
[1744422049100,0.0008906,83200.0,83199.0,0.47538239]
[1744422049998,6e-07,83200.0,83199.0,0.47638239]
[1744422050162,6e-07,83200.0,83199.0,0.48826307]
[1744422051752,6e-07,83200.0,83199.0,0.49721179]
[1744422052155,6e-07,83200.0,83199.0,0.49621179]
[1744422052360,6e-07,83200.0,83199.0,0.49721179]
[1744422053319,0.0957006,83200.0,83199.0,0.62590307]
[1744422061274,6e-07,83200.0,83199.0,0.62590307]
[1744422062885,6e-07,83200.0,83199.0,0.62582024]
[1744422068609,6e-07,83200.0,83199.0,0.62682024]
[1744422072171,6e-07,83200.0,83199.0,0.67642024]
[1744422073516,6e-07,83209.0,83208.0,0.59590185]
[1744422073714,6e-07,83209.0,83208.0,0.71674339]
[1744422077009,6e-07,83209.0,83208.0,1.12494339]
[1744422081122,6e-07,83209.0,83208.0,1.24804254]
[1744422081474,6e-07,83209.0,83208.0,0.83984254]
[1744422082018,6e-07,83209.0,83208.0,0.83980254]
[1744422082623,6e-07,83209.0,83208.0,0.91327332]
[1744422083137,6e-07,83209.0,83208.0,0.77467332]
[1744422083456,6e-07,83209.0,83208.0,0.91327332]
[1744422086133,6e-07,83209.0,83208.0,0.83980254]
[1744422086338,6e-07,83209.0,83208.0,0.83923251]
[1744422091165,6e-07,83209.0,83208.0,0.85377336]
[1744422097467,6e-07,83209.0,83208.0,2.09029336]
[1744422099524,6e-07,83209.0,83208.0,2.09129336]
[1744422102234,6e-07,83209.0,83208.0,2.18192811]
[1744422102754,6e-07,83209.0,83208.0,2.59012811]
[1744422103844,6e-07,83209.0,83208.0,2.59008811]
[1744422105411,6e-07,83209.0,83208.0,2.58908811]
[1744422105794,6e-07,83209.0,83208.0,2.49845336]
[1744422106132,6e-07,83209.0,83208.0,2.49945336]
[1744422116263,6e-07,83209.0,83208.0,2.59008811]
[1744422116464,0.0008436,83227.0,83208.0,2.59008811]
[1744422116465,0.0008436,83227.0,83226.0,0.240309]
[1744422116594,0.0008436,83227.0,83226.0,0.51661417]
[1744422116801,0.00098457,83227.0,83226.0,0.51421139]
[1744422120744,0.00098457,83227.0,83226.0,0.85421139]
[1744422126139,0.00098457,83227.0,83226.0,0.85521139]
[1744422126308,5.7e-07,83227.0,83226.0,0.85521139]
[1744422129617,5.7e-07,83227.0,83226.0,1.26341139]
[1744422140987,5.7e-07,83227.0,83226.0,2.49965139]
[1744422143192,5.7e-07,83227.0,83226.0,2.49961139]
[1744422150775,5.7e-07,83227.0,83226.0,2.49905922]
[1744422156225,5.7e-07,83227.0,83226.0,2.14351837]
[1744422156425,5.7e-07,83227.0,83226.0,1.73527837]
[1744422156426,0.04600057,83227.0,83226.0,1.73527837]
[1744422159237,0.04600057,83227.0,83226.0,1.61443683]
[1744422159439,0.09320057,83227.0,83226.0,1.61443683]
[1744422161516,0.11152917,83227.0,83226.0,1.37468]
[1744422161714,0.0946,83219.0,83211.0,0.378791]
[1744422161895,0.012016,83220.0,83211.0,0.378791]
[1744422161896,0.0946,83218.0,83211.0,0.378791]
[1744422162092,0.012016,83220.0,83217.0,0.012016]
[1744422162271,0.012016,83220.0,83211.0,0.378791]
[1744422162272,0.240338,83216.0,83211.0,0.13844]
[1744422162500,0.0946,83214.0,83211.0,0.150457]
[1744422162701,0.0946,83214.0,83211.0,0.012017]
[1744422163731,0.0474,83213.0,83212.0,0.240349]
[1744422166660,0.06259403,83213.0,83212.0,0.240349]
[1744422170501,0.10919403,83213.0,83212.0,0.240349]
[1744422170843,0.06179403,83213.0,83211.0,0.012017]
[1744422171048,0.0465,83212.0,83211.0,0.012017]
[1744422171248,0.061569,83212.0,83211.0,0.012017]
[1744422171492,0.0465,83211.0,83209.0,0.252373]
[1744422171736,0.01506683,83210.0,83209.0,0.252373]
[1744422172818,0.0465,83211.0,83209.0,0.252373]
[1744422175237,0.0466,83213.0,83211.0,0.240352]
[1744422175376,0.0466,83213.0,83212.0,0.12084154]
[1744422182578,0.0489,83216.0,83213.0,0.252364]
[1744422182779,0.0979,83221.0,83220.0,0.240326]
[1744422182981,0.0489,83226.0,83225.0,0.240312]
[1744422189101,0.06371922,83226.0,83225.0,0.240312]
[1744422193510,0.06371922,83226.0,83224.0,0.252327]
[1744422194664,0.06371922,83226.0,83224.0,0.252098]
[1744422198530,0.07573422,83226.0,83223.0,0.240317]
[1744422198731,0.07573422,83226.0,83222.0,0.012016]
[1744422198931,0.07573422,83226.0,83222.0,0.13285754]
[1744422202536,0.31604522,83226.0,83222.0,0.13285754]
[1744422203194,0.012015,83225.0,83222.0,0.13285754]
[1744422203334,0.02757144,83225.0,83222.0,0.13285754]
[1744422204100,0.26788544,83225.0,83222.0,0.13285754]
[1744422204298,0.240337,83217.0,83215.0,0.13844]
[1744422204439,0.0966,83216.0,83215.0,0.13844]
[1744422204634,0.11211845,83216.0,83215.0,0.13844]
[1744422213029,0.35245645,83216.0,83215.0,0.13844]
[1744422213232,0.52245645,83216.0,83215.0,0.13844]
[1744422213433,0.52245645,83216.0,83209.0,0.012017]
[1744422213434,0.012017,83213.0,83209.0,0.012017]
[1744422213939,0.01551411,83212.0,83209.0,0.012017]
[1744422214270,0.01551411,83212.0,83208.0,0.252377]
[1744422214271,0.012018,83208.0,83204.0,0.012018]
[1744422214470,0.012018,83208.0,83205.0,0.252388]
[1744422214721,0.01550868,83207.0,83205.0,0.252388]
[1744422215134,0.012017,83209.0,83201.0,0.150419]
[1744422215331,0.01547959,83206.0,83205.0,0.012018]
[1744422215490,0.012018,83208.0,83205.0,0.012018]
[1744422215690,0.01547959,83206.0,83205.0,0.012018]
[1744422215892,0.012018,83208.0,83205.0,0.012018]
[1744422216124,0.01547959,83206.0,83205.0,0.012018]
[1744422216301,0.012018,83208.0,83205.0,0.012018]
[1744422216849,0.01548068,83207.0,83205.0,0.252386]
[1744422221497,0.252377,83209.0,83206.0,0.012018]
[1744422223040,0.012017,83209.0,83206.0,0.252383]
[1744422223641,0.012017,83209.0,83206.0,0.012018]
[1744422223991,0.012017,83209.0,83206.0,0.252383]
[1744422226479,0.012017,83209.0,83206.0,0.012018]
[1744422226686,0.012018,83207.0,83198.0,0.378789]
[1744422226857,0.012018,83205.0,83200.0,0.012019]
[1744422227059,0.012018,83205.0,83198.0,0.150419]
[1744422227060,0.012018,83202.0,83198.0,0.150419]
[1744422227242,0.012018,83202.0,83199.0,0.012019]
[1744422227472,0.01541768,83201.0,83200.0,0.240384]
[1744422228032,0.24037,83205.0,83201.0,0.012019]
[1744422228325,0.252388,83205.0,83201.0,0.0121594]
[1744422230423,0.012018,83204.0,83201.0,0.0121594]
[1744422230802,0.012018,83204.0,83201.0,0.0001404]
[1744422239819,0.252393,83204.0,83201.0,0.0001404]
[1744422240215,0.0224343,83203.0,83201.0,0.0001404]
[1744422241040,0.252393,83204.0,83201.0,0.0001404]
[1744422241661,0.240378,83202.0,83201.0,0.0001404]
[1744422242042,0.25577193,83202.0,83201.0,0.0001404]
[1744422242442,0.27821109,83202.0,83201.0,0.0001404]
[1744422243455,0.03783309,83202.0,83201.0,0.0001404]
[1744422244134,0.27821109,83202.0,83201.0,0.0001404]
[1744422247700,0.03783309,83202.0,83201.0,0.0001404]
[1744422248024,0.03783309,83202.0,83201.0,0.21828194]
[1744422248025,0.01539393,83202.0,83201.0,0.21828194]
[1744422248381,0.26012114,83209.0,83207.0,0.240364]
[1744422248583,0.26012114,83209.0,83208.0,0.12084154]
[1744422249501,0.21027542,83220.0,83217.0,0.012016]
[1744422249699,0.02243452,83219.0,83218.0,0.252346]
[1744422250281,0.02243452,83219.0,83218.0,0.012016]
[1744422250771,0.352016,83222.0,83219.0,0.252345]
[1744422251132,0.02243152,83221.0,83219.0,0.252345]
[1744422251667,0.02243152,83220.0,83219.0,0.252345]
[1744422252312,0.352016,83222.0,83219.0,0.252345]
[1744422252917,0.34,83222.0,83219.0,0.252345]
[1744422253177,1.23692,83240.0,83230.0,0.240295]
[1744422253178,0.26012114,83238.0,83230.0,0.240295]
[1744422253387,0.34,83237.0,83230.0,0.240295]
[1744422253810,0.26012114,83238.0,83230.0,0.240295]
[1744422256802,0.01525356,83231.0,83230.0,0.240295]
[1744422257005,0.26012114,83238.0,83230.0,0.240295]
[1744422257465,0.01525356,83231.0,83230.0,0.240295]
[1744422257849,0.26012114,83238.0,83230.0,0.240295]
[1744422258231,0.01525356,83231.0,83230.0,0.240295]
[1744422258427,0.26012114,83238.0,83230.0,0.240295]
[1744422258651,0.01525356,83231.0,83230.0,0.240295]
[1744422259055,0.26012114,83238.0,83230.0,0.240295]
[1744422259432,0.26012114,83238.0,83231.0,0.21374154]
[1744422264061,0.002,83239.0,83231.0,0.21374154]
[1744422272047,0.002,83239.0,83231.0,0.56828239]
[1744422275621,0.002,83239.0,83231.0,0.57736517]
[1744422287100,0.002,83239.0,83231.0,0.50694154]
[1744422287299,0.002,83239.0,83231.0,0.59904154]
[1744422301091,0.002,83239.0,83231.0,0.25904154]
[1744422301092,0.0469,83237.0,83231.0,0.25904154]
[1744422306455,0.0519,83239.0,83231.0,0.25904154]
[1744422306591,0.002,83239.0,83231.0,0.25904154]
[1744422310143,0.002,83239.0,83231.0,0.61358239]
[1744422328092,0.002,83239.0,83231.0,0.66208239]
[1744422331560,0.002,83239.0,83231.0,0.61358239]
[1744422339761,2e-07,83234.0,83233.0,0.01554085]
[1744422339964,2e-07,83234.0,83233.0,0.47878463]
[1744422340174,2e-07,83239.0,83238.0,0.240274]
[1744422340386,2e-07,83239.0,83238.0,0.71805864]
[1744422340556,2e-07,83239.0,83238.0,0.71565639]
[1744422341657,4e-07,83243.0,83242.0,0.580263]
[1744422341897,4e-07,83243.0,83242.0,0.70110454]
[1744422342044,4e-07,83243.0,83242.0,0.71564539]
[1744422342451,4e-07,83243.0,83242.0,0.72461101]
[1744422342822,4e-07,83243.0,83242.0,1.18221101]
[1744422343025,4e-07,83243.0,83242.0,1.18126072]
[1744422344342,4e-07,83245.0,83244.0,0.59579785]
[1744422344537,4e-07,83245.0,83244.0,0.85471939]
[1744422346100,4e-07,83245.0,83244.0,1.26291939]
[1744422347038,0.0008434,83258.0,83251.0,0.580237]
[1744422347238,0.0013138,83252.0,83251.0,0.71561939]
[1744422347572,0.0013138,83252.0,83251.0,0.76551939]
[1744422347890,0.0013138,83252.0,83251.0,0.81131939]
[1744422349850,0.0013138,83252.0,83251.0,0.88480238]
[1744422350053,0.0013138,83252.0,83251.0,0.77456153]
[1744422350180,0.0013138,83252.0,83251.0,0.91264153]
[1744422352819,0.0013138,83252.0,83251.0,0.83915854]
[1744422371804,0.0467138,83252.0,83251.0,0.49915854]
[1744422372223,0.0467138,83252.0,83249.0,0.150052]
[1744422372224,0.0454,83251.0,83249.0,0.150052]
[1744422372354,0.0921,83250.0,83249.0,0.390292]
[1744422372555,0.08559307,83250.0,83249.0,0.390292]
[1744422372874,0.08559307,83250.0,83249.0,0.252252]
[1744422373529,0.0455,83248.0,83246.0,1.23592]
[1744422373924,0.0455,83248.0,83247.0,0.240248]
[1744422375922,0.05847257,83248.0,83247.0,0.240248]
[1744422377986,0.0455,83248.0,83247.0,0.240248]
[1744422382131,0.05847257,83248.0,83247.0,0.240248]
[1744422384434,0.012012,83247.0,83243.0,0.062013]
[1744422384621,0.05847257,83248.0,83245.0,0.252266]
[1744422384806,0.0455,83248.0,83245.0,0.252266]
[1744422384986,0.01285775,83247.0,83246.0,0.240249]
[1744422387047,0.01285775,83247.0,83245.0,0.252266]
[1744422388176,0.01285775,83247.0,83245.0,0.012012]
[1744422388482,0.01285775,83247.0,83246.0,0.240251]
[1744422388669,0.01285775,83247.0,83245.0,0.012012]
[1744422389088,0.01285775,83247.0,83245.0,0.252263]
[1744422389593,0.0455,83248.0,83247.0,0.240248]
[1744422390288,0.05937387,83248.0,83247.0,0.240248]
[1744422392884,0.0455,83248.0,83247.0,0.240248]
[1744422394428,0.05937387,83248.0,83247.0,0.240248]
[1744422405360,0.06937387,83248.0,83246.0,0.240251]
[1744422406796,0.02244036,83247.0,83246.0,0.240251]
[1744422407149,0.03628308,83247.0,83246.0,0.240251]
[1744422408322,0.03628308,83247.0,83246.0,0.23949625]
[1744422409832,0.02276045,83247.0,83246.0,0.23949625]
[1744422413041,0.00032009,83247.0,83246.0,0.36033779]
[1744422417716,0.02277541,83247.0,83246.0,0.36033779]
[1744422420273,0.00032009,83247.0,83246.0,0.36033779]
[1744422420960,0.00032009,83247.0,83246.0,0.23949625]
[1744422421536,0.01412541,83247.0,83246.0,0.23949625]
[1744422421738,0.00032009,83247.0,83246.0,0.23949625]
[1744422421971,0.03658052,83247.0,83246.0,0.23949625]
[1744422422117,0.0227752,83247.0,83246.0,0.23949625]
[1744422422316,0.03658052,83247.0,83246.0,0.23949625]
[1744422425083,0.01412541,83247.0,83246.0,0.23949625]
[1744422433448,0.01412541,83247.0,83243.0,0.05]
[1744422433658,0.288357,83245.0,83243.0,0.05]
[1744422433858,0.458357,83245.0,83243.0,0.05]
[1744422434025,0.06133301,83244.0,83243.0,0.05]
[1744422434223,0.2550121,83244.0,83243.0,0.05]
[1744422435398,0.012014,83236.0,83233.0,0.012014]
[1744422435799,0.02245269,83235.0,83233.0,0.012014]
[1744422435950,0.03766956,83235.0,83232.0,0.012014]
[1744422436161,0.02245269,83234.0,83232.0,0.012014]
[1744422436542,0.0152147,83233.0,83232.0,0.012014]
[1744422437152,0.012013,83237.0,83233.0,0.252303]
[1744422440499,0.012013,83237.0,83234.0,0.012014]
[1744422441925,0.012013,83237.0,83235.0,0.05]
[1744422442905,0.24028,83236.0,83235.0,0.05]
[1744422443168,0.45928,83236.0,83235.0,0.05]
[1744422443702,0.48170115,83236.0,83235.0,0.05]
[1744422445017,0.4929106,83236.0,83235.0,0.05]
[1744422448591,0.252303,83233.0,83230.0,0.012014]
[1744422448791,0.422303,83233.0,83230.0,0.012014]
[1744422449211,0.02242115,83232.0,83230.0,0.012014]
[1744422449411,0.20242115,83232.0,83230.0,0.012014]
[1744422449618,0.18,83232.0,83230.0,0.012014]
[1744422450017,0.02240619,83231.0,83230.0,0.012014]
[1744422450918,0.02240619,83231.0,83225.0,0.012015]
[1744422450919,0.240302,83229.0,83225.0,0.012015]
[1744422451319,0.16,83229.0,83225.0,0.012015]
[1744422451739,0.02240619,83228.0,83225.0,0.012015]
[1744422451940,0.19755927,83228.0,83225.0,0.012015]
[1744422452187,0.19755927,83228.0,83225.0,0.252324]
[1744422452777,0.02240619,83227.0,83225.0,0.252324]
[1744422452951,0.18240619,83227.0,83225.0,0.252324]
[1744422453160,0.16,83227.0,83225.0,0.252324]
[1744422453490,0.01514893,83226.0,83225.0,0.252324]
[1744422453829,0.012015,83229.0,83225.0,0.252324]
[1744422454029,0.00010155,83226.0,83225.0,0.252324]
[1744422454333,0.01525048,83226.0,83225.0,0.252324]
[1744422463508,0.01525048,83226.0,83225.0,0.343924]
[1744422463710,0.01525048,83226.0,83225.0,0.46476554]
[1744422465023,0.00010155,83226.0,83225.0,0.46476554]
[1744422472083,0.00010155,83226.0,83225.0,0.47930639]
[1744422472298,0.00010155,83226.0,83225.0,0.81930639]
[1744422474643,5.5e-07,83226.0,83225.0,0.82030639]
[1744422474843,0.00032009,83247.0,83246.0,0.337351]
[1744422475133,0.00078983,83247.0,83246.0,0.59611254]
[1744422476401,0.00078983,83247.0,83246.0,0.93611254]
[1744422477256,0.00078983,83247.0,83246.0,0.94814555]
[1744422483567,0.00078983,83247.0,83246.0,0.9626864]
[1744422493637,8.3e-07,83247.0,83246.0,0.9626864]
[1744422495801,8.3e-07,83247.0,83246.0,2.1986864]
[1744422503586,8.3e-07,83247.0,83246.0,2.1015864]
[1744422505028,8.3e-07,83247.0,83246.0,2.08704555]
[1744422505206,8.3e-07,83247.0,83246.0,1.74704555]
[1744422505409,8.3e-07,83247.0,83246.0,1.73501254]
[1744422506781,0.19500083,83247.0,83246.0,1.476251]
[1744422509715,0.0495,83246.0,83242.0,0.240262]
[1744422509934,0.0451,83243.0,83240.0,0.240267]
[1744422510221,0.0495,83242.0,83240.0,0.25228]
[1744422510422,0.012013,83237.0,83234.0,0.13784]
[1744422510626,0.0495,83236.0,83234.0,0.390137]
[1744422510899,0.18981147,83236.0,83234.0,0.390137]
[1744422511128,0.0495,83235.0,83234.0,0.390137]
[1744422511343,0.05931038,83235.0,83234.0,0.390137]
[1744422511642,0.20786444,83235.0,83234.0,0.390137]
[1744422511825,0.012014,83232.0,83229.0,0.012015]
[1744422512053,0.15,83232.0,83231.0,0.012014]
[1744422512531,0.17,83232.0,83231.0,0.012014]
[1744422512825,0.0451,83234.0,83232.0,0.240292]
[1744422512969,0.2351,83234.0,83232.0,0.240292]
[1744422514731,0.0498,83233.0,83232.0,0.240292]
[1744422514988,0.21343539,83242.0,83241.0,0.240266]
[1744422515196,0.0456,83243.0,83241.0,0.240266]
[1744422515392,0.0498,83242.0,83241.0,0.240266]
[1744422515532,0.26012114,83246.0,83243.0,0.012013]
[1744422515735,0.26012114,83246.0,83245.0,0.240254]
[1744422516237,0.04980083,83247.0,83245.0,0.240254]
[1744422519632,0.0097841,83246.0,83245.0,0.240254]
[1744422519982,0.0097841,83246.0,83245.0,0.36109554]
[1744422520325,8.3e-07,83247.0,83245.0,0.36109554]
[1744422520633,8.3e-07,83247.0,83246.0,0.12084154]
[1744422524332,0.18000083,83247.0,83245.0,0.240254]
[1744422524690,0.18000083,83247.0,83245.0,0.290254]
[1744422526120,8.3e-07,83247.0,83245.0,0.290254]
[1744422527226,0.0495,83246.0,83245.0,0.240254]
[1744422527605,0.0591849,83246.0,83245.0,0.240254]
[1744422528227,0.2747849,83246.0,83244.0,0.240257]
[1744422529049,0.1047849,83246.0,83244.0,0.240257]
[1744422532829,0.2847849,83246.0,83243.0,0.252271]
[1744422533071,0.1047849,83246.0,83243.0,0.252271]
[1744422534007,0.2667969,83246.0,83240.0,0.012013]
[1744422534231,0.012012,83245.0,83241.0,0.012013]
[1744422534452,0.182012,83245.0,83241.0,0.012013]
[1744422534668,0.00964287,83244.0,83241.0,0.012013]
[1744422534983,0.18964287,83244.0,83241.0,0.012013]
[1744422535313,0.03362166,83243.0,83241.0,0.252277]
[1744422535517,0.0096407,83242.0,83241.0,0.252277]
[1744422535837,0.03205847,83242.0,83241.0,0.252277]
[1744422536415,0.01120389,83242.0,83241.0,0.252277]
[1744422537342,0.22544639,83251.0,83246.0,0.240251]
[1744422537566,0.00962732,83247.0,83246.0,0.240251]
[1744422537755,0.03205477,83247.0,83246.0,0.240251]
[1744422537962,0.02242828,83247.0,83246.0,0.36109254]
[1744422538343,8.3e-07,83247.0,83246.0,0.36109254]
[1744422552818,8.3e-07,83247.0,83245.0,0.05]
[1744422552971,8.3e-07,83247.0,83245.0,0.290252]
[1744422553520,0.17000083,83247.0,83245.0,0.240252]
[1744422553876,0.00964861,83246.0,83245.0,0.240252]
[1744422554073,0.00964861,83246.0,83242.0,0.252274]
[1744422554298,0.00964861,83246.0,83245.0,0.240254]
[1744422555107,0.03206757,83246.0,83245.0,0.240254]
[1744422555485,0.0432757,83246.0,83245.0,0.240254]
[1744422555938,0.0432757,83246.0,83243.0,0.25227]
[1744422556654,0.03362709,83245.0,83243.0,0.25227]
[1744422556959,0.00951046,83244.0,83243.0,0.25227]
[1744422557088,0.03192942,83244.0,83243.0,0.012013]
[1744422557692,0.04313755,83244.0,83243.0,0.012013]
[1744422557890,0.0451,83241.0,83237.0,0.012013]
[1744422558091,0.03192508,83240.0,83237.0,0.012013]
[1744422558751,0.02241896,83239.0,83237.0,0.012013]
[1744422558923,0.00950395,83238.0,83237.0,0.012013]
[1744422559145,0.03192291,83238.0,83237.0,0.012013]
[1744422559443,0.02241896,83238.0,83237.0,0.012013]
[1744422559825,0.0336256,83238.0,83237.0,0.25229]
[1744422560146,0.04312955,83238.0,83237.0,0.012013]
[1744422560737,0.04312955,83238.0,83236.0,0.012014]
[1744422561119,0.03192291,83238.0,83236.0,0.012014]
[1744422561386,0.02241896,83237.0,83236.0,0.012014]
[1744422561697,0.03192183,83237.0,83236.0,0.012014]
[1744422561888,0.03191558,83237.0,83236.0,0.012014]
[1744422564763,0.03191558,83237.0,83233.0,0.012014]
[1744422564975,0.03191558,83237.0,83233.0,0.252301]
[1744422565213,0.240295,83231.0,83228.0,0.012015]
[1744422565387,0.00949528,83230.0,83228.0,0.012015]
[1744422565588,0.033617,83229.0,83228.0,0.012015]
[1744422565788,0.0431112,83229.0,83228.0,0.012015]
[1744422567465,0.240309,83226.0,83225.0,0.1378]
[1744422567750,0.41272171,83226.0,83225.0,0.1378]
[1744422567944,0.27216128,83226.0,83225.0,0.1378]
[1744422568288,0.29538057,83226.0,83221.0,0.012016]
[1744422568941,0.02241271,83225.0,83221.0,0.012016]
[1744422569151,0.0094374,83224.0,83221.0,0.252339]
[1744422569351,0.0094374,83224.0,83222.0,0.240318]
[1744422569808,0.02241271,83223.0,83221.0,0.252339]
[1744422570004,0.00943524,83222.0,83221.0,0.252339]
[1744422570262,0.00943524,83222.0,83218.0,0.012016]
[1744422570263,0.00943524,83222.0,83219.0,0.240328]
[1744422570475,0.00943524,83222.0,83220.0,0.240324]
[1744422570969,0.252327,83225.0,83221.0,0.012016]
[1744422571172,0.252327,83225.0,83221.0,0.01248491]
[1744422571686,0.252327,83225.0,83221.0,0.00046891]
[1744422571687,0.2617684,83224.0,83221.0,0.00046891]
[1744422571865,0.24032,83223.0,83221.0,0.00046891]
[1744422572191,0.00943524,83222.0,83221.0,0.00046891]
[1744422572772,0.012015,83224.0,83221.0,0.00046891]
[1744422572930,0.00943632,83223.0,83221.0,0.00046891]
[1744422573135,0.240321,83222.0,83221.0,0.00046891]
[1744422573444,0.00943524,83222.0,83221.0,0.00046891]
[1744422573881,0.012015,83224.0,83221.0,0.00046891]
[1744422574089,0.00943524,83222.0,83221.0,0.00046891]
[1744422574293,0.012015,83224.0,83221.0,0.24079191]
[1744422574487,0.00943524,83222.0,83221.0,0.24079191]
[1744422574691,0.012015,83224.0,83221.0,0.25280791]
[1744422574889,0.00943524,83222.0,83221.0,0.25280791]
[1744422575055,0.012015,83224.0,83221.0,0.25280791]
[1744422575256,0.00943524,83222.0,83221.0,0.25280791]
[1744422575456,0.012015,83224.0,83221.0,0.25280791]
[1744422575656,0.00943524,83222.0,83221.0,0.25280791]
[1744422575858,0.012015,83224.0,83221.0,0.25280791]
[1744422576054,0.00943524,83222.0,83221.0,0.25280791]
[1744422576254,0.252325,83226.0,83222.0,0.252335]
[1744422576894,0.02235986,83225.0,83222.0,0.252335]
[1744422577258,0.252325,83226.0,83222.0,0.252335]
[1744422577655,0.252325,83226.0,83223.0,0.012015]
[1744422578797,0.02236226,83225.0,83223.0,0.012015]
[1744422579529,0.02236226,83224.0,83223.0,0.012015]
[1744422582644,0.02236226,83224.0,83222.0,0.252335]
[1744422583002,0.02236226,83223.0,83222.0,0.012016]
[1744422583211,0.02236226,83223.0,83221.0,0.01248491]
[1744422583652,0.02236226,83222.0,83221.0,0.01248491]
[1744422586638,0.0317573,83222.0,83221.0,0.01248491]
[1744422588318,0.02236226,83222.0,83221.0,0.01248491]
[1744422588523,0.00929616,83222.0,83221.0,0.01248491]
[1744422588741,0.02049789,83222.0,83221.0,0.01248491]
[1744422588945,0.01120173,83222.0,83221.0,0.01248491]
[1744422589146,0.02049789,83222.0,83221.0,0.01248491]
[1744422589349,0.04290499,83222.0,83221.0,0.01248491]
[1744422591991,0.04290499,83222.0,83221.0,0.00046891]
[1744422592433,0.28322599,83222.0,83221.0,0.00046891]
[1744422596889,0.51312599,83222.0,83221.0,0.00046891]
[1744422599475,0.85312599,83222.0,83221.0,0.00046891]
[1744422601175,1.40241715,83222.0,83221.0,0.00046891]
[1744422601375,1.40248813,83222.0,83221.0,0.00046891]
[1744422601599,1.40248813,83222.0,83212.0,0.0008438]
[1744422601600,0.45454085,83213.0,83212.0,0.0008438]
[1744422601934,0.90248074,83213.0,83212.0,0.0009842]
[1744422602088,0.673464,83207.0,83182.0,0.012021]
[1744422602290,1.09210554,83207.0,83206.0,0.00094555]
[1744422602493,1.12367031,83207.0,83206.0,0.00094555]
[1744422603056,1.13487204,83207.0,83206.0,0.00094555]
[1744422603237,1.25560052,83207.0,83206.0,0.00094555]
[1744422604613,1.13487204,83207.0,83206.0,0.00094555]
[1744422606347,1.50953403,83207.0,83206.0,0.00094555]
[1744422606546,1.51860084,83207.0,83206.0,0.00094555]
[1744422610038,0.240378,83202.0,83181.0,0.002422]
[1744422610191,0.9195355,83202.0,83181.0,0.002422]
[1744422610630,1.06857723,83202.0,83181.0,0.002422]
[1744422610835,1.09098433,83202.0,83181.0,0.002422]
[1744422611341,1.21171281,83202.0,83181.0,0.002422]
[1744422611643,1.27355366,83202.0,83181.0,0.002422]
[1744422612434,1.15282518,83202.0,83181.0,0.002422]
[1744422614980,1.25282518,83202.0,83181.0,0.002422]
[1744422615922,1.51200077,83202.0,83181.0,0.002422]
[1744422617981,1.51826318,83202.0,83181.0,0.002422]
[1744422618298,1.51200077,83202.0,83181.0,0.002422]
[1744422618435,1.63272925,83202.0,83181.0,0.002422]
[1744422621001,1.63899039,83202.0,83181.0,0.002422]
[1744422621202,1.63272925,83202.0,83181.0,0.002422]
[1744422622546,1.51200077,83202.0,83181.0,0.002422]
[1744422624206,1.37416077,83202.0,83181.0,0.002422]
[1744422624361,1.51200077,83202.0,83181.0,0.002422]
[1744422625517,1.41200077,83202.0,83181.0,0.002422]
[1744422625828,1.51200077,83202.0,83181.0,0.002422]
[1744422626314,1.63272925,83202.0,83181.0,0.002422]
[1744422627921,0.580384,83200.0,83181.0,0.002422]
[1744422628076,0.87122554,83200.0,83181.0,0.002422]
[1744422628291,0.90088977,83200.0,83181.0,0.002422]
[1744422628906,0.91208693,83200.0,83181.0,0.002422]